[Event "Hunan Belt and Road Open 2019"]
[Site "Hunan"]
[Date "2019.08.04"]
[Round "7.26"]
[White "Wang, Yiye"]
[Black "Radovanovic, Mihajlo"]
[Result "0-1"]
[ECO "A49"]
[WhiteElo "2440"]
[BlackElo "2500"]
[Annotator "ChessBase"]
[PlyCount "44"]
[EventDate "2019.07.29"]
[EventType "swiss"]
[EventCountry "CHN"]
[SourceTitle "playchess.com"]
[Source "ChessBase"]
[SourceQuality "1"]
[TimeControl "5400+30"]

1. d4 {[%emt 0:05:02]} Nf6 {[%emt 0:00:00]} 2. Nf3 {[%emt 0:01:04]} g6 {[%emt 0:00:29]} 3. g3 {[%emt 0:02:09]} Bg7 {[%emt 0:01:18]} 4. Bg2 {[%emt 0:00:08]} O-O {[%emt 0:00:06]} 5. O-O {[%emt 0:00:19]} d6 {[%emt 0:00:04]} 6. b3 {[%emt 0:02:10]} a5 {[%emt 0:00:45]} 7. Bb2 {[%emt 0:01:05]} a4 {[%emt 0:01:05]} 8. c4 {[%emt 0:01:01]} Nbd7 {[%emt 0:00:16]} 9. Nc3 {[%emt 0:00:45]} a3 {[%emt 0:06:31]} 10. Bc1 {[%emt 0:00:06]} e5 {[%emt 0:00:41]} 11. dxe5 {[%emt 0:00:35]} dxe5 {[%emt 0:03:43]} 12. Ne1 {[%emt 0:02:16]} e4 {[%emt 0:15:30]} 13. Nc2 {[%emt 0:16:35]} c6 {[%emt 0:17:04]} 14. Bxa3 {[%emt 0:13:41]} Rxa3 {[%emt 0:04:43]} 15. Nxa3 {[%emt 0:00:14]} Qa5 {[%emt 0:00:03]} 16. Nab1 {[%emt 0:04:05]} Ng4 {[%emt 0:00:48]} 17. h3 {[%emt 0:04:51]} Ndf6 {[%emt 0:05:45]} 18. Qd6 {[%emt 0:24:44]} e3 {[%emt 0:09:19]} 19. hxg4 {[%emt 0:05:40]} exf2+ {[%emt 0:01:40]} 20. Rxf2 {[%emt 0:00:04]} Nxg4 {[%emt 0:00:06]} 21. Rf3 {[%emt 0:03:52]} Rd8 {[%emt 0:07:06]} 22. b4 {[%emt 0:08:55]} Qa7+ {[%emt 0:00:13]} 0-1

[Event "Hunan Belt and Road Open 2019"]
[Site "Hunan"]
[Date "2019.08.04"]
[Round "7.27"]
[White "Gusain, Himal"]
[Black "Lou, Yiping"]
[Result "1-0"]
[ECO "D45"]
[WhiteElo "2407"]
[BlackElo "2489"]
[Annotator "ChessBase"]
[PlyCount "156"]
[EventDate "2019.07.29"]
[EventType "swiss"]
[EventCountry "CHN"]
[SourceTitle "playchess.com"]
[Source "ChessBase"]
[SourceQuality "1"]
[TimeControl "5400+30"]

1. Nf3 {[%emt 0:07:03]} d5 {[%emt 0:00:10]} 2. e3 {[%emt 0:00:08]} Nf6 {[%emt 0:01:07]} 3. c4 {[%emt 0:00:09]} c6 {[%emt 0:01:09]} 4. Nc3 {[%emt 0:02:56]} e6 {[%emt 0:00:31]} 5. d4 {[%emt 0:02:13]} Nbd7 {[%emt 0:00:04]} 6. b3 {[%emt 0:00:38]} Bb4 {[%emt 0:00:43]} 7. Bd2 {[%emt 0:00:08]} O-O {[%emt 0:00:38]} 8. Be2 {[%emt 0:01:07]} b6 {[%emt 0:02:58]} 9. O-O {[%emt 0:00:19]} Bd6 {[%emt 0:00:09]} 10. a4 {[%emt 0:02:30]} Bb7 {[%emt 0:05:22]} 11. Qb1 {[%emt 0:00:15]} c5 {[%emt 0:10:04]} 12. a5 {[%emt 0:02:20]} Ne4 {[%emt 0:02:31]} 13. Nb5 {[%emt 0:02:50]} Bb8 {[%emt 0:07:32]} 14. a6 {[%emt 0:01:51]} Bc6 {[%emt 0:00:11]} 15. cxd5 {[%emt 0:03:10]} Bxd5 {[%emt 0:01:34]} 16. Rd1 {[%emt 0:01:27]} Ndf6 {[%emt 0:18:52]} 17. Be1 {[%emt 0:02:08]} Qe7 {[%emt 0:01:41]} 18. Ne5 {[%emt 0:02:22]} cxd4 {[%emt 0:03:42]} 19. exd4 {[%emt 0:00:16]} Nd7 {[%emt 0:00:57]} 20. f3 {[%emt 0:03:43]} Nef6 {[%emt 0:01:00]} 21. f4 {[%emt 0:11:28]} Be4 {[%emt 0:04:03]} 22. Qc1 {[%emt 0:04:38]} Nd5 {[%emt 0:03:16]} 23. Qd2 {[%emt 0:08:55]} Qe8 {[%emt 0:08:13]} 24. Bg3 {[%emt 0:02:22]} f6 {[%emt 0:01:13]} 25. Nc4 {[%emt 0:02:30]} Qe7 {[%emt 0:03:57]} 26. Re1 {[%emt 0:04:27]} f5 {[%emt 0:01:26]} 27. Ne5 {[%emt 0:01:20]} Rc8 {[%emt 0:00:23]} 28. Rec1 {[%emt 0:02:07]} Rxc1+ {[%emt 0:06:12]} 29. Rxc1 {[%emt 0:00:37]} Bd6 {[%emt 0:02:04]} 30. Nc6 {[%emt 0:01:28]} Qf8 {[%emt 0:00:01]} 31. Nbxa7 {[%emt 0:02:23]} Nb4 {[%emt 0:04:36]} 32. Bc4 {[%emt 0:06:42]} Kh8 {[%emt 0:01:39]} 33. Bxe6 {[%emt 0:00:55]} Nc5 {[%emt 0:01:46]} 34. dxc5 {[%emt 0:04:09]} Bxc5+ {[%emt 0:00:06]} 35. Rxc5 {[%emt 0:00:38]} bxc5 {[%emt 0:00:20]} 36. Nxb4 {[%emt 0:03:20]} Rxa7 {[%emt 0:00:04]} 37. Nd3 {[%emt 0:05:44]} Rxa6 {[%emt 0:00:04]} 38. Bc4 {[%emt 0:00:05]} Ra1+ {[%emt 0:00:26]} 39. Ne1 {[%emt 0:00:52]} h6 {[%emt 0:01:01]} 40. h3 {[%emt 0:00:55]} Qa8 {[%emt 0:00:25]} 41. Bh4 {[%emt 0:02:26]} Kh7 {[%emt 0:00:22]} 42. Bf1 {[%emt 0:00:58]} Rb1 {[%emt 0:00:18]} 43. Bf2 {[%emt 0:01:08]} Rxb3 {[%emt 0:01:03]} 44. Bxc5 {[%emt 0:00:05]} Rb1 {[%emt 0:00:12]} 45. Bf2 {[%emt 0:00:52]} Qb8 {[%emt 0:01:20]} 46. Bd4 {[%emt 0:00:40]} Qd8 {[%emt 0:01:18]} 47. Kf2 {[%emt 0:01:27]} Qd6 {[%emt 0:02:12]} 48. Qe3 {[%emt 0:00:36]} Rd1 {[%emt 0:00:53]} 49. Bc3 {[%emt 0:00:10]} Qc6 {[%emt 0:00:19]} 50. Be2 {[%emt 0:00:19]} Rb1 {[%emt 0:00:42]} 51. Bd4 {[%emt 0:02:04]} Qb7 {[%emt 0:00:22]} 52. Nf3 {[%emt 0:00:23]} Rb4 {[%emt 0:01:04]} 53. Bc3 {[%emt 0:00:46]} Ra4 {[%emt 0:00:03]} 54. Qd2 {[%emt 0:00:23]} Qa7+ {[%emt 0:00:28]} 55. Kg3 {[%emt 0:00:08]} Ra2 {[%emt 0:00:27]} 56. Qd1 {[%emt 0:00:55]} Qc7 {[%emt 0:00:46]} 57. Be5 {[%emt 0:00:39]} Qa7 {[%emt 0:00:23]} 58. Kh2 {[%emt 0:00:43]} Qb7 {[%emt 0:00:43]} 59. Ne1 {[%emt 0:00:43]} Qa7 {[%emt 0:00:45]} 60. Bf3 {[%emt 0:00:38]} Bxf3 {[%emt 0:00:47]} 61. Qxf3 {[%emt 0:00:19]} Ra3 {[%emt 0:00:35]} 62. Qh5 {[%emt 0:00:26]} Qd7 {[%emt 0:00:27]} 63. Nf3 {[%emt 0:00:26]} Ra8 {[%emt 0:00:18]} 64. Nh4 {[%emt 0:00:24]} Rf8 {[%emt 0:00:07]} 65. Qg6+ {[%emt 0:00:30]} Kg8 {[%emt 0:00:01]} 66. Nf3 {[%emt 0:00:25]} Qf7 {[%emt 0:00:25]} 67. Qg3 {[%emt 0:00:07]} Qd7 {[%emt 0:00:43]} 68. Nd4 {[%emt 0:00:09]} Re8 {[%emt 0:01:24]} 69. Qd3 {[%emt 0:01:18]} g6 {[%emt 0:00:18]} 70. Qc4+ {[%emt 0:00:48]} Kh7 {[%emt 0:00:09]} 71. Nf3 {[%emt 0:00:18]} Qe6 {[%emt 0:00:23]} 72. Qd4 {[%emt 0:00:13]} Re7 {[%emt 0:00:16]} 73. Qf2 {[%emt 0:00:23]} Kg8 {[%emt 0:01:12]} 74. Qh4 {[%emt 0:00:14]} h5 {[%emt 0:00:20]} 75. Ng5 {[%emt 0:01:15]} Qd7 {[%emt 0:00:12]} 76. Qg3 {[%emt 0:00:16]} Qd5 {[%emt 0:00:16]} 77. Qc3 {[%emt 0:00:16]} Qd7 {[%emt 0:01:28]} 78. Qb3+ {[%emt 0:00:40]} Kf8 {[%emt 0:00:05]} 1-0

[Event "Hunan Belt and Road Open 2019"]
[Site "Hunan"]
[Date "2019.08.04"]
[Round "7.28"]
[White "Wang, Chen"]
[Black "Zou, Chen"]
[Result "1-0"]
[ECO "B51"]
[WhiteElo "2476"]
[BlackElo "2440"]
[Annotator "ChessBase"]
[PlyCount "109"]
[EventDate "2019.07.29"]
[EventType "swiss"]
[EventCountry "CHN"]
[SourceTitle "playchess.com"]
[Source "ChessBase"]
[SourceQuality "1"]
[TimeControl "5400+30"]

1. e4 {[%emt 0:00:00]} c5 {[%emt 0:07:39]} 2. Nf3 {[%emt 0:00:25]} d6 {[%emt 0:01:18]} 3. Bb5+ {[%emt 0:00:37]} Nd7 {[%emt 0:00:06]} 4. c3 {[%emt 0:03:38]} Ngf6 {[%emt 0:03:20]} 5. Qe2 {[%emt 0:00:06]} a6 {[%emt 0:01:58]} 6. Ba4 {[%emt 0:00:15]} b5 {[%emt 0:00:34]} 7. Bc2 {[%emt 0:00:07]} Bb7 {[%emt 0:00:31]} 8. O-O {[%emt 0:02:03]} e6 {[%emt 0:00:13]} 9. d4 {[%emt 0:08:00]} Be7 {[%emt 0:00:53]} 10. Nbd2 {[%emt 0:04:57]} O-O {[%emt 0:00:27]} 11. Re1 {[%emt 0:21:17]} Qc7 {[%emt 0:00:34]} 12. Nf1 {[%emt 0:02:29]} Rac8 {[%emt 0:00:34]} 13. Bd3 {[%emt 0:01:05]} Rfe8 {[%emt 0:01:48]} 14. Ng3 {[%emt 0:02:26]} Bf8 {[%emt 0:01:52]} 15. h3 {[%emt 0:02:20]} e5 {[%emt 0:03:31]} 16. d5 {[%emt 0:05:33]} c4 {[%emt 0:01:02]} 17. Bc2 {[%emt 0:00:04]} a5 {[%emt 0:01:08]} 18. Be3 {[%emt 0:01:03]} Ba6 {[%emt 0:04:32]} 19. Nh2 {[%emt 0:04:30]} g6 {[%emt 0:02:41]} 20. Ng4 {[%emt 0:00:36]} Nxg4 {[%emt 0:00:28]} 21. hxg4 {[%emt 0:01:06]} b4 {[%emt 0:02:26]} 22. Ba4 {[%emt 0:01:07]} Rb8 {[%emt 0:00:20]} 23. Rec1 {[%emt 0:10:37]} Rec8 {[%emt 0:01:47]} 24. Bc6 {[%emt 0:00:37]} Nc5 {[%emt 0:03:49]} 25. Bxc5 {[%emt 0:00:07]} dxc5 {[%emt 0:00:03]} 26. Nf1 {[%emt 0:06:23]} Bh6 {[%emt 0:00:49]} 27. Ne3 {[%emt 0:01:19]} Rb6 {[%emt 0:04:57]} 28. Rd1 {[%emt 0:04:30]} Rcb8 {[%emt 0:03:40]} 29. Nxc4 {[%emt 0:08:31]} bxc3 {[%emt 0:00:32]} 30. bxc3 {[%emt 0:00:03]} Qd8 {[%emt 0:01:35]} 31. a4 {[%emt 0:02:41]} Bxc4 {[%emt 0:03:26]} 32. Qxc4 {[%emt 0:00:02]} Qh4 {[%emt 0:00:38]} 33. Qe2 {[%emt 0:02:03]} Bf4 {[%emt 0:05:06]} 34. g3 {[%emt 0:00:16]} Bxg3 {[%emt 0:00:38]} 35. fxg3 {[%emt 0:00:04]} Qxg3+ {[%emt 0:00:04]} 36. Qg2 {[%emt 0:02:06]} Qe3+ {[%emt 0:00:02]} 37. Qf2 {[%emt 0:00:03]} Qxe4 {[%emt 0:00:03]} 38. Bb5 {[%emt 0:00:22]} Qxg4+ {[%emt 0:00:36]} 39. Qg2 {[%emt 0:00:01]} Qf4 {[%emt 0:01:27]} 40. Rf1 {[%emt 0:04:39]} Qe3+ {[%emt 0:00:08]} 41. Qf2 {[%emt 0:00:04]} Qg5+ {[%emt 0:00:03]} 42. Qg2 {[%emt 0:00:03]} Qe3+ {[%emt 0:01:12]} 43. Qf2 {[%emt 0:00:12]} Qg5+ {[%emt 0:00:03]} 44. Kh1 {[%emt 0:00:11]} Qe7 {[%emt 0:03:05]} 45. Rae1 {[%emt 0:00:16]} f5 {[%emt 0:00:47]} 46. Qg3 {[%emt 0:00:49]} Rf8 {[%emt 0:01:38]} 47. Rxe5 {[%emt 0:00:36]} Qg7 {[%emt 0:00:42]} 48. Rfe1 {[%emt 0:00:26]} f4 {[%emt 0:00:11]} 49. Qh4 {[%emt 0:02:10]} h5 {[%emt 0:02:25]} 50. Re6 {[%emt 0:00:13]} Rxe6 {[%emt 0:01:19]} 51. dxe6 {[%emt 0:00:02]} Qb7+ {[%emt 0:00:50]} 52. Kg1 {[%emt 0:00:19]} f3 {[%emt 0:07:21]} 53. e7 {[%emt 0:00:08]} f2+ {[%emt 0:00:20]} 54. Qxf2 {[%emt 0:00:03]} Rxf2 {[%emt 0:00:34]} 55. Kxf2 {[%emt 0:00:34]} 1-0

[Event "Hunan Belt and Road Open 2019"]
[Site "Hunan"]
[Date "2019.08.04"]
[Round "7.29"]
[White "Xu, Minghui"]
[Black "Zhu, Jiner"]
[Result "0-1"]
[ECO "E71"]
[WhiteElo "2401"]
[BlackElo "2454"]
[Annotator "ChessBase"]
[PlyCount "60"]
[EventDate "2019.07.29"]
[EventType "swiss"]
[EventCountry "CHN"]
[SourceTitle "playchess.com"]
[Source "ChessBase"]
[SourceQuality "1"]
[TimeControl "5400+30"]

1. d4 {[%emt 0:00:11]} Nf6 {[%emt 0:00:00]} 2. c4 {[%emt 0:00:14]} g6 {[%emt 0:00:00]} 3. Nc3 {[%emt 0:00:39]} Bg7 {[%emt 0:00:00]} 4. e4 {[%emt 0:00:04]} d6 {[%emt 0:00:00]} 5. h3 {[%emt 0:00:27]} O-O {[%emt 0:00:05]} 6. Be3 {[%emt 0:00:02]} e5 {[%emt 0:02:02]} 7. d5 {[%emt 0:00:05]} Na6 {[%emt 0:02:22]} 8. g4 {[%emt 0:04:40]} Nc5 {[%emt 0:00:23]} 9. Qc2 {[%emt 0:00:09]} a5 {[%emt 0:00:16]} 10. Nge2 {[%emt 0:00:34]} h5 {[%emt 0:02:14]} 11. g5 {[%emt 0:09:23]} Nh7 {[%emt 0:01:51]} 12. h4 {[%emt 0:02:48]} f6 {[%emt 0:11:38]} 13. gxf6 {[%emt 0:03:05]} Bxf6 {[%emt 0:01:10]} 14. O-O-O {[%emt 0:48:30]} Bxh4 {[%emt 0:01:58]} 15. f4 {[%emt 0:03:04]} exf4 {[%emt 0:01:59]} 16. Nxf4 {[%emt 0:00:39]} Bg5 {[%emt 0:01:39]} 17. Nce2 {[%emt 0:02:50]} Bg4 {[%emt 0:06:57]} 18. Rg1 {[%emt 0:04:49]} Qe8 {[%emt 0:00:41]} 19. Rxg4 {[%emt 0:10:28]} hxg4 {[%emt 0:00:06]} 20. Bg2 {[%emt 0:00:04]} Qe5 {[%emt 0:09:15]} 21. Rf1 {[%emt 0:00:29]} Rf7 {[%emt 0:00:06]} 22. Kb1 {[%emt 0:00:20]} Raf8 {[%emt 0:01:32]} 23. Bd4 {[%emt 0:00:44]} Qe8 {[%emt 0:02:16]} 24. e5 {[%emt 0:03:08]} Rxf4 {[%emt 0:01:14]} 25. Nxf4 {[%emt 0:00:12]} Rxf4 {[%emt 0:00:47]} 26. Rxf4 {[%emt 0:00:23]} Bxf4 {[%emt 0:00:04]} 27. e6 {[%emt 0:00:09]} Bg5 {[%emt 0:00:52]} 28. Be4 {[%emt 0:02:17]} Nxe4 {[%emt 0:00:19]} 29. Qxe4 {[%emt 0:00:02]} g3 {[%emt 0:01:17]} 30. Qg4 {[%emt 0:01:56]} Qf8 {[%emt 0:00:08]} 0-1

[Event "Hunan Belt and Road Open 2019"]
[Site "Hunan"]
[Date "2019.08.04"]
[Round "7.30"]
[White "Zhao, Yuanhe"]
[Black "Lin, Yi"]
[Result "1/2-1/2"]
[ECO "D14"]
[WhiteElo "2448"]
[BlackElo "2406"]
[Annotator "NA"]
[PlyCount "50"]
[EventDate "2019.07.29"]
[EventType "swiss"]
[EventCountry "CHN"]
[SourceTitle "playchess.com"]
[Source "ChessBase"]
[SourceQuality "1"]
[TimeControl "5400+30"]

1. c4 {[%emt 0:00:00]} c6 {[%emt 0:00:00]} 2. Nf3 {[%emt 0:01:26]} d5 {[%emt 0:00:51]} 3. d4 {[%emt 0:01:27]} Nf6 {[%emt 0:00:38]} 4. cxd5 {[%emt 0:00:31]} cxd5 {[%emt 0:00:08]} 5. Nc3 {[%emt 0:00:04]} Nc6 {[%emt 0:00:07]} 6. Bf4 {[%emt 0:00:46]} Bf5 {[%emt 0:00:11]} 7. e3 {[%emt 0:01:00]} e6 {[%emt 0:00:09]} 8. Bd3 {[%emt 0:01:06]} Bxd3 {[%emt 0:00:09]} 9. Qxd3 {[%emt 0:00:03]} Bd6 {[%emt 0:00:13]} 10. Bxd6 {[%emt 0:00:06]} Qxd6 {[%emt 0:00:04]} 11. O-O {[%emt 0:00:08]} O-O {[%emt 0:00:08]} 12. Rfc1 {[%emt 0:02:05]} Rfc8 {[%emt 0:02:42]} 13. Ne2 {[%emt 0:01:53]} Ne7 {[%emt 0:02:32]} 14. Qb5 {[%emt 0:02:07]} Qd7 {[%emt 0:02:55]} 15. Qb3 {[%emt 0:00:15]} Rxc1+ {[%emt 0:00:42]} 16. Rxc1 {[%emt 0:00:06]} Rc8 {[%emt 0:00:04]} 17. Rxc8+ {[%emt 0:00:08]} Qxc8 {[%emt 0:00:05]} 18. Qc3 {[%emt 0:00:05]} Qxc3 {[%emt 0:00:06]} 19. Nxc3 {[%emt 0:00:03]} Nc6 {[%emt 0:00:08]} 20. Kf1 {[%emt 0:00:06]} Kf8 {[%emt 0:00:05]} 21. Ke2 {[%emt 0:00:04]} Ke7 {[%emt 0:00:04]} 22. a3 {[%emt 0:00:20]} a6 {[%emt 0:00:07]} 23. h3 {[%emt 0:00:16]} h6 {[%emt 0:00:08]} 24. Kd3 {[%emt 0:00:07]} Kd6 {[%emt 0:00:05]} 25. b4 {[%emt 0:00:05]} b5 {[%emt 0:00:05] Ke4 Ke5+} 1/2-1/2

[Event "Hunan Belt and Road Open 2019"]
[Site "Hunan"]
[Date "2019.08.04"]
[Round "7.31"]
[White "Zhao, Chenxi"]
[Black "Xu, Jun"]
[Result "1-0"]
[ECO "B80"]
[WhiteElo "2400"]
[BlackElo "2477"]
[Annotator "ChessBase"]
[PlyCount "65"]
[EventDate "2019.07.29"]
[EventType "swiss"]
[EventCountry "CHN"]
[SourceTitle "playchess.com"]
[Source "ChessBase"]
[SourceQuality "1"]
[TimeControl "5400+30"]

1. e4 {[%emt 0:00:00]} c5 {[%emt 0:00:00]} 2. Nf3 {[%emt 0:00:00]} e6 {[%emt 0:00:00]} 3. d4 {[%emt 0:00:00]} cxd4 {[%emt 0:00:00]} 4. Nxd4 {[%emt 0:00:03]} Nf6 {[%emt 0:00:00]} 5. Nc3 {[%emt 0:01:52]} d6 {[%emt 0:00:00]} 6. g3 {[%emt 0:00:11]} Nc6 {[%emt 0:03:16]} 7. Bg2 {[%emt 0:00:08]} Bd7 {[%emt 0:00:01]} 8. O-O {[%emt 0:00:23]} Be7 {[%emt 0:00:12]} 9. Nce2 {[%emt 0:05:37]} Nxd4 {[%emt 0:13:30]} 10. Nxd4 {[%emt 0:00:10]} Qc7 {[%emt 0:00:01]} 11. a4 {[%emt 0:04:58]} O-O {[%emt 0:07:41]} 12. Nb5 {[%emt 0:10:33]} Qb8 {[%emt 0:18:05]} 13. Bf4 {[%emt 0:04:00]} Bxb5 {[%emt 0:13:03]} 14. axb5 {[%emt 0:00:07]} a6 {[%emt 0:00:03]} 15. Qe2 {[%emt 0:03:45]} e5 {[%emt 0:00:31]} 16. Be3 {[%emt 0:01:57]} axb5 {[%emt 0:00:16]} 17. Qxb5 {[%emt 0:00:11]} Qc7 {[%emt 0:00:05]} 18. c3 {[%emt 0:02:43]} Qc6 {[%emt 0:00:30]} 19. Qxc6 {[%emt 0:12:13]} bxc6 {[%emt 0:00:04]} 20. Ba7 {[%emt 0:00:11]} Rfc8 {[%emt 0:08:45]} 21. Bh3 {[%emt 0:05:03]} Rc7 {[%emt 0:06:16]} 22. Bb6 {[%emt 0:00:44]} Rxa1 {[%emt 0:00:06]} 23. Rxa1 {[%emt 0:00:08]} Rb7 {[%emt 0:00:11]} 24. Ra8+ {[%emt 0:00:19]} Bf8 {[%emt 0:00:01]} 25. Bd8 {[%emt 0:00:13]} c5 {[%emt 0:09:12]} 26. Bf5 {[%emt 0:03:20]} h5 {[%emt 0:00:46]} 27. b4 {[%emt 0:01:16]} cxb4 {[%emt 0:00:30]} 28. cxb4 {[%emt 0:00:06]} Ne8 {[%emt 0:05:46]} 29. Ba5 {[%emt 0:01:49]} Re7 {[%emt 0:01:19]} 30. b5 {[%emt 0:03:20]} Nc7 {[%emt 0:00:02]} 31. Rb8 {[%emt 0:00:12]} g6 {[%emt 0:00:22]} 32. Bc8 {[%emt 0:00:47]} Ne6 {[%emt 0:00:55]} 33. Bxe6 {[%emt 0:00:26]} 1-0

[Event "Hunan Belt and Road Open 2019"]
[Site "Hunan"]
[Date "2019.08.04"]
[Round "7.32"]
[White "Fang, Yuxiang"]
[Black "Liu, Guanchu"]
[Result "1/2-1/2"]
[ECO "E15"]
[WhiteElo "2476"]
[BlackElo "2449"]
[Annotator "ChessBase"]
[PlyCount "69"]
[EventDate "2019.07.29"]
[EventType "swiss"]
[EventCountry "CHN"]
[SourceTitle "playchess.com"]
[Source "ChessBase"]
[SourceQuality "1"]
[TimeControl "5400+30"]

1. d4 {[%emt 0:01:12]} Nf6 {[%emt 0:01:26]} 2. c4 {[%emt 0:02:24]} e6 {[%emt 0:00:39]} 3. Nf3 {[%emt 0:02:34]} b6 {[%emt 0:01:06]} 4. g3 {[%emt 0:02:24]} Ba6 {[%emt 0:02:45]} 5. b3 {[%emt 0:02:41]} Bb4+ {[%emt 0:00:34]} 6. Bd2 {[%emt 0:03:50]} Be7 {[%emt 0:00:27]} 7. Bg2 {[%emt 0:00:53]} c6 {[%emt 0:01:01]} 8. O-O {[%emt 0:02:23]} d5 {[%emt 0:00:35]} 9. Ne5 {[%emt 0:02:48]} Nfd7 {[%emt 0:01:21]} 10. Nxd7 {[%emt 0:04:08]} Nxd7 {[%emt 0:00:19]} 11. Bc3 {[%emt 0:01:41]} O-O {[%emt 0:01:16]} 12. Nd2 {[%emt 0:02:43]} Rc8 {[%emt 0:00:45]} 13. e4 {[%emt 0:01:33]} c5 {[%emt 0:00:17]} 14. exd5 {[%emt 0:02:05]} exd5 {[%emt 0:00:11]} 15. dxc5 {[%emt 0:02:30]} dxc4 {[%emt 0:00:29]} 16. c6 {[%emt 0:02:51]} cxb3 {[%emt 0:00:56]} 17. Re1 {[%emt 0:01:20]} Bb5 {[%emt 0:00:08]} 18. Nxb3 {[%emt 0:05:39]} Bxc6 {[%emt 0:00:33]} 19. Bxg7 {[%emt 0:00:37]} Kxg7 {[%emt 0:00:35]} 20. Nd4 {[%emt 0:00:18]} Bxg2 {[%emt 0:00:21]} 21. Nf5+ {[%emt 0:00:21]} Kh8 {[%emt 0:00:17]} 22. Rxe7 {[%emt 0:00:27]} Bh3 {[%emt 0:00:44]} 23. Qd4+ {[%emt 0:02:16]} Ne5 {[%emt 0:00:18]} 24. Qxe5+ {[%emt 0:00:39]} f6 {[%emt 0:00:14]} 25. Qe2 {[%emt 0:00:29]} Bxf5 {[%emt 0:00:15]} 26. Rd1 {[%emt 0:00:07]} Bg4 {[%emt 0:00:14]} 27. Rxh7+ {[%emt 0:01:16]} Kxh7 {[%emt 0:00:17]} 28. Qxg4 {[%emt 0:00:06]} Qe8 {[%emt 0:00:14]} 29. Rd7+ {[%emt 0:00:15]} Rf7 {[%emt 0:00:11]} 30. Qh5+ {[%emt 0:00:40]} Kg8 {[%emt 0:00:12]} 31. Qg6+ {[%emt 0:00:08]} Kf8 {[%emt 0:00:08]} 32. Qh6+ {[%emt 0:00:08]} Kg8 {[%emt 0:00:07]} 33. Qg6+ {[%emt 0:00:08]} Kf8 {[%emt 0:00:07]} 34. Qh6+ {[%emt 0:00:08]} Kg8 {[%emt 0:00:09]} 35. Qg6+ {[%emt 0:00:07]} 1/2-1/2

[Event "Hunan Belt and Road Open 2019"]
[Site "Hunan"]
[Date "2019.08.04"]
[Round "7.33"]
[White "Gan-Erdene, Sugar"]
[Black "Li, Yankai"]
[Result "1-0"]
[ECO "B90"]
[WhiteElo "2408"]
[BlackElo "2439"]
[Annotator "NA"]
[PlyCount "115"]
[EventDate "2019.07.29"]
[EventType "swiss"]
[EventCountry "CHN"]
[SourceTitle "playchess.com"]
[Source "ChessBase"]
[SourceQuality "1"]
[TimeControl "5400+30"]

1. e4 {[%emt 0:00:00]} c5 {[%emt 0:03:31]} 2. Nf3 {[%emt 0:00:00]} d6 {[%emt 0:00:03]} 3. d4 {[%emt 0:00:00]} cxd4 {[%emt 0:00:03]} 4. Nxd4 {[%emt 0:00:00]} Nf6 {[%emt 0:00:03]} 5. Nc3 {[%emt 0:00:00]} a6 {[%emt 0:00:02]} 6. Be3 {[%emt 0:00:14]} e5 {[%emt 0:00:05]} 7. Nb3 {[%emt 0:00:04]} Be6 {[%emt 0:00:05]} 8. h3 {[%emt 0:00:39]} Be7 {[%emt 0:01:03]} 9. Qf3 {[%emt 0:00:23]} Nbd7 {[%emt 0:04:09]} 10. g4 {[%emt 0:00:34]} h6 {[%emt 0:00:25]} 11. O-O-O {[%emt 0:00:35]} Rc8 {[%emt 0:03:15]} 12. Nd5 {[%emt 0:01:43]} Bxd5 {[%emt 0:03:58]} 13. exd5 {[%emt 0:00:05]} Qc7 {[%emt 0:00:18]} 14. Bd3 {[%emt 0:00:35]} g6 {[%emt 0:08:55]} 15. Kb1 {[%emt 0:02:10]} Nb6 {[%emt 0:02:51]} 16. Bxb6 {[%emt 0:08:16]} Qxb6 {[%emt 0:00:03]} 17. Nd2 {[%emt 0:04:10]} Qa5 {[%emt 0:14:43]} 18. c4 {[%emt 0:16:26]} O-O {[%emt 0:21:40]} 19. h4 {[%emt 0:03:55]} b5 {[%emt 0:02:58]} 20. c5 {[%emt 0:10:45]} Rxc5 {[%emt 0:03:42]} 21. Nb3 {[%emt 0:05:21]} Qb4 {[%emt 0:00:07]} 22. Nxc5 {[%emt 0:00:34]} Qxc5 {[%emt 0:01:28]} 23. h5 {[%emt 0:12:30]} g5 {[%emt 0:15:34]} 24. Bf5 {[%emt 0:03:04]} Re8 {[%emt 0:00:16]} 25. Rd2 {[%emt 0:00:59]} Qb4 {[%emt 0:01:44]} 26. Rc2 {[%emt 0:02:35]} e4 {[%emt 0:02:02]} 27. Qd1 {[%emt 0:00:58]} Bf8 {[%emt 0:00:58]} 28. Qd2 {[%emt 0:01:49]} Qa4 {[%emt 0:00:07]} 29. Rhc1 {[%emt 0:05:27]} Re5 {[%emt 0:00:08]} 30. Rc8 {[%emt 0:00:59]} Kg7 {[%emt 0:01:24]} 31. Ra8 {[%emt 0:01:01]} Rxd5 {[%emt 0:04:29]} 32. Qc3 {[%emt 0:04:10]} Rc5 {[%emt 0:01:24]} 33. Qe3 {[%emt 0:00:12]} Rxc1+ {[%emt 0:00:34]} 34. Qxc1 {[%emt 0:00:07]} d5 {[%emt 0:00:24]} 35. a3 {[%emt 0:01:19]} b4 {[%emt 0:02:05]} 36. axb4 {[%emt 0:09:47]} Qxb4 {[%emt 0:01:20]} 37. Qc3 {[%emt 0:00:37]} d4 {[%emt 0:01:16]} 38. Qxb4 {[%emt 0:01:13]} Bxb4 {[%emt 0:00:03]} 39. Rxa6 {[%emt 0:02:24]} e3 {[%emt 0:01:24]} 40. fxe3 {[%emt 0:00:31]} dxe3 {[%emt 0:00:01]} 41. Bd3 {[%emt 0:00:26]} Nxg4 {[%emt 0:00:06]} 42. Ra4 {[%emt 0:00:25]} Ne5 {[%emt 0:00:18]} 43. Rxb4 {[%emt 0:00:55]} Nxd3 {[%emt 0:00:03]} 44. Re4 {[%emt 0:00:10]} Nf4 {[%emt 0:01:49]} 45. Rxe3 {[%emt 0:00:20]} Nxh5 {[%emt 0:00:01]} 46. b4 {[%emt 0:00:30]} Nf4 {[%emt 0:00:34]} 47. b5 {[%emt 0:00:48]} Nd5 {[%emt 0:00:54]} 48. Rd3 {[%emt 0:01:04]} Nb6 {[%emt 0:00:04]} 49. Kc2 {[%emt 0:00:44]} g4 {[%emt 0:00:42]} 50. Kd2 {[%emt 0:00:41]} Nc4+ {[%emt 0:00:58]} 51. Ke2 {[%emt 0:00:08]} h5 {[%emt 0:00:19]} 52. Rd5 {[%emt 0:00:49]} Kg6 {[%emt 0:00:45]} 53. Rc5 {[%emt 0:00:07]} Na5 {[%emt 0:00:10]} 54. b6 {[%emt 0:00:08]} Nb7 {[%emt 0:00:01]} 55. Rc7 {[%emt 0:00:31]} Na5 {[%emt 0:00:01]} 56. Ra7 {[%emt 0:00:16]} Nc6 {[%emt 0:00:03]} 57. b7 {[%emt 0:00:32]} Kg5 {[%emt 0:00:12]} 58. Ra6 {[%emt 0:00:13]} 1-0